[Event "Early-Titled-Tuesday-Blitz-March-19-2024"]
[Site "Chess.com"]
[Date "2024.03.19"]
[Round "8"]
[White "ExchangeAB"]
[Black "NovakRatko"]
[Result "0-1"]
[WhiteElo "2516"]
[BlackElo "2418"]
[TimeControl "180+1"]
[EndTime "9:31:11 PDT"]
[Termination "NovakRatko won on time"]

1. e4 {[%clk 0:03:00.9]} 1... d5 {[%clk 0:02:59.9]} 2. exd5 {[%clk 0:03:00.5]}
2... c6 {[%clk 0:02:59.2]} 3. dxc6 {[%clk 0:02:59.8]} 3... Nxc6 {[%clk
0:03:00.1]} 4. Nf3 {[%clk 0:02:58.9]} 4... e5 {[%clk 0:03:00.6]} 5. Nc3 {[%clk
0:02:57.3]} 5... Bd6 {[%clk 0:03:00.8]} 6. d4 {[%clk 0:02:40]} 6... exd4 {[%clk
0:03:00.5]} 7. Nxd4 {[%clk 0:02:39.8]} 7... Nge7 {[%clk 0:03:01]} 8. Ndb5 {[%clk
0:02:35.8]} 8... Bb8 {[%clk 0:02:53.1]} 9. Qxd8+ {[%clk 0:02:34.5]} 9... Nxd8
{[%clk 0:02:52.6]} 10. Bg5 {[%clk 0:02:29.2]} 10... f6 {[%clk 0:02:51.8]} 11.
Be3 {[%clk 0:02:25.4]} 11... a6 {[%clk 0:02:51.1]} 12. Nd4 {[%clk 0:02:24.6]}
12... b5 {[%clk 0:02:43.7]} 13. O-O-O {[%clk 0:02:19.5]} 13... Bb7 {[%clk
0:02:43.1]} 14. f3 {[%clk 0:02:10.9]} 14... O-O {[%clk 0:02:29.4]} 15. a3 {[%clk
0:02:10.3]} 15... Be5 {[%clk 0:02:28.1]} 16. Be2 {[%clk 0:02:07]} 16... Rc8
{[%clk 0:02:27.8]} 17. Kb1 {[%clk 0:02:04]} 17... Ndc6 {[%clk 0:02:14.5]} 18.
Nxc6 {[%clk 0:02:03.7]} 18... Nxc6 {[%clk 0:02:05.5]} 19. Ne4 {[%clk 0:02:01.9]}
19... Rfd8 {[%clk 0:02:01.8]} 20. Nc5 {[%clk 0:01:59.7]} 20... Rxd1+ {[%clk
0:01:42.1]} 21. Rxd1 {[%clk 0:01:58.3]} 21... Rb8 {[%clk 0:01:36.1]} 22. f4
{[%clk 0:01:43.3]} 22... Bc7 {[%clk 0:01:32.3]} 23. Rd7 {[%clk 0:01:40.8]} 23...
Bb6 {[%clk 0:01:31.7]} 24. b4 {[%clk 0:01:20.1]} 24... Bc8 {[%clk 0:01:16.5]}
25. Rd6 {[%clk 0:01:16.9]} 25... Ne7 {[%clk 0:01:13.7]} 26. Nxa6 {[%clk
0:01:04.5]} 26... Bxa6 {[%clk 0:01:06.1]} 27. Rxb6 {[%clk 0:01:04.1]} 27... Rxb6
{[%clk 0:01:00.2]} 28. Bxb6 {[%clk 0:01:05]} 28... Nd5 {[%clk 0:01:00.9]} 29.
Bc5 {[%clk 0:00:54.7]} 29... Nc3+ {[%clk 0:01:00.1]} 30. Kb2 {[%clk 0:00:46]}
30... Nxe2 {[%clk 0:01:01]} 31. Be3 {[%clk 0:00:39.1]} 31... h6 {[%clk
0:00:49.7]} 32. c3 {[%clk 0:00:38.6]} 32... g5 {[%clk 0:00:50.1]} 33. g3 {[%clk
0:00:38.7]} 33... Bb7 {[%clk 0:00:33.7]} 34. Kc2 {[%clk 0:00:38.4]} 34... Bf3
{[%clk 0:00:31.3]} 35. Kd2 {[%clk 0:00:38.5]} 35... Kf7 {[%clk 0:00:30]} 36.
fxg5 {[%clk 0:00:38.7]} 36... hxg5 {[%clk 0:00:30]} 37. Bc5 {[%clk 0:00:22.1]}
37... g4 {[%clk 0:00:24.5]} 38. Be3 {[%clk 0:00:20.6]} 38... Ke6 {[%clk
0:00:24.7]} 39. Kd3 {[%clk 0:00:20.9]} 39... Kd5 {[%clk 0:00:24.9]} 40. a4
{[%clk 0:00:14.7]} 40... bxa4 {[%clk 0:00:24.9]} 41. c4+ {[%clk 0:00:15.4]}
41... Kc6 {[%clk 0:00:25.2]} 42. Kc2 {[%clk 0:00:15.1]} 42... Be4+ {[%clk
0:00:21.5]} 43. Kb2 {[%clk 0:00:13.7]} 43... Bd3 {[%clk 0:00:21.3]} 44. Ka3
{[%clk 0:00:06.9]} 44... Bxc4 {[%clk 0:00:21.2]} 45. Kxa4 {[%clk 0:00:07.4]}
45... Bb5+ {[%clk 0:00:20.5]} 46. Kb3 {[%clk 0:00:07]} 46... Kd5 {[%clk
0:00:21]} 47. Kc2 {[%clk 0:00:06.3]} 47... Nd4+ {[%clk 0:00:21.1]} 48. Kc1
{[%clk 0:00:03.8]} 48... Nf3 {[%clk 0:00:21.5]} 49. Bf4 {[%clk 0:00:03.3]} 49...
Nxh2 {[%clk 0:00:21.4]} 50. Kd2 {[%clk 0:00:03.9]} 50... Ke4 {[%clk 0:00:21.7]}
51. Ke1 {[%clk 0:00:03.8]} 51... Nf3+ {[%clk 0:00:21.7]} 52. Kf2 {[%clk
0:00:04]} 52... Nd4 {[%clk 0:00:22.2]} 53. Bc7 {[%clk 0:00:03.6]} 53... f5
{[%clk 0:00:21.6]} 54. Bb8 {[%clk 0:00:03.5]} 54... Nc6 {[%clk 0:00:21.9]} 55.
Bd6 {[%clk 0:00:03.6]} 55... Kd5 {[%clk 0:00:22.5]} 56. Bf8 {[%clk 0:00:03.7]}
56... Kc4 {[%clk 0:00:22.8]} 57. Ke3 {[%clk 0:00:03.6]} 57... Nxb4 {[%clk
0:00:23.2]} 58. Kf4 {[%clk 0:00:03.9]} 58... Bd7 {[%clk 0:00:23.7]} 59. Bd6
{[%clk 0:00:03.2]} 59... Kd5 {[%clk 0:00:24]} 60. Bb8 {[%clk 0:00:03.2]} 60...
Nd3+ {[%clk 0:00:24.4]} 61. Ke3 {[%clk 0:00:03.5]} 61... Nc5 {[%clk 0:00:24]}
62. Kf2 {[%clk 0:00:03.3]} 62... Ke4 {[%clk 0:00:24.1]} 63. Bd6 {[%clk
0:00:02.9]} 63... Nd3+ {[%clk 0:00:24.3]} 64. Kg2 {[%clk 0:00:02.6]} 64... Bb5
{[%clk 0:00:24.4]} 65. Bb8 {[%clk 0:00:02.2]} 65... Bc6 {[%clk 0:00:25]} 66. Kh2
{[%clk 0:00:02.2]} 66... Kf3 {[%clk 0:00:24.2]} 67. Bc7 {[%clk 0:00:02.3]} 67...
Nc5 {[%clk 0:00:24]} 68. Bb8 {[%clk 0:00:02.5]} 68... Ne4 {[%clk 0:00:24.1]} 69.
Bc7 {[%clk 0:00:02.7]} 69... Nf6 {[%clk 0:00:24.4]} 70. Bb8 {[%clk 0:00:03]}
70... Nd7 {[%clk 0:00:24.1]} 71. Bd6 {[%clk 0:00:03.3]} 71... Be4 {[%clk
0:00:24]} 72. Bc7 {[%clk 0:00:03.5]} 72... Nc5 {[%clk 0:00:24.3]} 73. Bd6 {[%clk
0:00:04]} 73... Nd3 {[%clk 0:00:24.6]} 74. Bb8 {[%clk 0:00:04.3]} 74... Nc1
{[%clk 0:00:24.4]} 75. Bc7 {[%clk 0:00:04.7]} 75... Ne2 {[%clk 0:00:24.8]} 76.
Bb8 {[%clk 0:00:05.3]} 76... f4 {[%clk 0:00:23.9]} 77. gxf4 {[%clk 0:00:02.4]}
77... g3+ {[%clk 0:00:23.2]} 78. Kh3 {[%clk 0:00:02.9]} 78... g2 {[%clk
0:00:23.5]} 79. Ba7 {[%clk 0:00:03.4]} 79... Nxf4+ {[%clk 0:00:21]} 80. Kh2
{[%clk 0:00:03.2]} 80... Ne2 {[%clk 0:00:21.3]} 81. Bb6 {[%clk 0:00:03.5]} 81...
Bf5 {[%clk 0:00:21.4]} 82. Ba7 {[%clk 0:00:04]} 82... Be6 {[%clk 0:00:21.7]} 83.
Bb6 {[%clk 0:00:04.5]} 83... Bd5 {[%clk 0:00:21.7]} 84. Ba7 {[%clk 0:00:05]}
84... Ke4 {[%clk 0:00:21.3]} 85. Bb6 {[%clk 0:00:05.4]} 85... Kd3 {[%clk
0:00:21.8]} 86. Ba7 {[%clk 0:00:05.1]} 86... Kd2 {[%clk 0:00:22.4]} 87. Bf2
{[%clk 0:00:05.3]} 87... Kd1 {[%clk 0:00:22.4]} 88. Bc5 {[%clk 0:00:03.3]} 88...
Ke1 {[%clk 0:00:22]} 89. Bb6 {[%clk 0:00:03.7]} 89... Kf1 {[%clk 0:00:22.2]} 90.
Ba7 {[%clk 0:00:04.1]} 90... Nf4 {[%clk 0:00:19.9]} 91. Bb6 {[%clk 0:00:03.7]}
91... Nd3 {[%clk 0:00:20.4]} 92. Be3 {[%clk 0:00:03.5]} 92... Nf2 {[%clk
0:00:20.7]} 0-1

[Event "Early-Titled-Tuesday-Blitz-March-19-2024"]
[Site "Chess.com"]
[Date "2024.03.19"]
[Round "8"]
[White "Szparu"]
[Black "bulletteemo"]
[Result "0-1"]
[WhiteElo "2782"]
[BlackElo "2610"]
[TimeControl "180+1"]
[EndTime "9:31:18 PDT"]
[Termination "bulletteemo won by resignation"]

1. d4 {[%clk 0:02:55]} 1... Nf6 {[%clk 0:02:56]} 2. c4 {[%clk 0:02:54.9]} 2...
e6 {[%clk 0:02:54.9]} 3. Nf3 {[%clk 0:02:55.8]} 3... c5 {[%clk 0:02:54.3]} 4. g3
{[%clk 0:02:56.7]} 4... cxd4 {[%clk 0:02:53]} 5. Nxd4 {[%clk 0:02:57.6]} 5...
Nc6 {[%clk 0:02:53.3]} 6. Bg2 {[%clk 0:02:57.8]} 6... d5 {[%clk 0:02:51.6]} 7.
O-O {[%clk 0:02:57.5]} 7... Be7 {[%clk 0:02:48.3]} 8. Nc3 {[%clk 0:02:57.2]}
8... O-O {[%clk 0:02:47.9]} 9. Nxc6 {[%clk 0:02:57]} 9... bxc6 {[%clk
0:02:48.1]} 10. Qc2 {[%clk 0:02:57.4]} 10... Bb7 {[%clk 0:02:40.1]} 11. Rd1
{[%clk 0:02:57.4]} 11... Qa5 {[%clk 0:02:38.7]} 12. b3 {[%clk 0:02:57.1]} 12...
Rac8 {[%clk 0:02:37.7]} 13. Bb2 {[%clk 0:02:57.1]} 13... Ba6 {[%clk 0:02:34.3]}
14. e4 {[%clk 0:02:51.6]} 14... dxc4 {[%clk 0:02:32]} 15. e5 {[%clk 0:02:52]}
15... Ng4 {[%clk 0:02:13.2]} 16. Ne4 {[%clk 0:02:48.3]} 16... Nxe5 {[%clk
0:02:06.6]} 17. Bc3 {[%clk 0:02:48.7]} 17... Qb5 {[%clk 0:02:03.2]} 18. a4
{[%clk 0:02:49.3]} 18... Qb8 {[%clk 0:01:59]} 19. Qb2 {[%clk 0:02:20.2]} 19...
f6 {[%clk 0:01:34.8]} 20. Bh3 {[%clk 0:02:16]} 20... Nd3 {[%clk 0:01:19.7]} 21.
Bxe6+ {[%clk 0:02:15.9]} 21... Kh8 {[%clk 0:01:19.6]} 22. Qe2 {[%clk 0:02:13.8]}
22... f5 {[%clk 0:01:01.7]} 23. Nd2 {[%clk 0:01:53.9]} 23... Bc5 {[%clk
0:00:56.4]} 24. Nxc4 {[%clk 0:01:46.1]} 24... Nxf2 {[%clk 0:00:53.1]} 25. Kg2
{[%clk 0:01:18.9]} 25... Nxd1 {[%clk 0:00:42.3]} 26. Rxd1 {[%clk 0:01:14.6]}
26... Rce8 {[%clk 0:00:37.8]} 27. Rd7 {[%clk 0:01:12.1]} 27... Re7 {[%clk
0:00:35.3]} 28. Qb2 {[%clk 0:00:46.4]} 28... Rxd7 {[%clk 0:00:19]} 29. Bxd7
{[%clk 0:00:47.3]} 29... Bxc4 {[%clk 0:00:17.6]} 30. Bxg7+ {[%clk 0:00:41.9]}
30... Kg8 {[%clk 0:00:18.1]} 31. bxc4 {[%clk 0:00:35.2]} 31... Qxb2+ {[%clk
0:00:18]} 32. Bxb2 {[%clk 0:00:36.1]} 32... Rb8 {[%clk 0:00:14.6]} 33. Be5
{[%clk 0:00:34.7]} 33... Rb1 {[%clk 0:00:07.2]} 34. Bxc6 {[%clk 0:00:34.2]}
34... Kf8 {[%clk 0:00:05.8]} 35. Bd7 {[%clk 0:00:33.1]} 35... Re1 {[%clk
0:00:03.9]} 36. Bb8 {[%clk 0:00:30.9]} 36... Re4 {[%clk 0:00:03.8]} 37. Bxf5
{[%clk 0:00:29.7]} 37... Rxc4 {[%clk 0:00:04.2]} 38. a5 {[%clk 0:00:30.1]} 38...
Ra4 {[%clk 0:00:04.5]} 39. Bc7 {[%clk 0:00:30.3]} 39... h6 {[%clk 0:00:05.1]}
40. h4 {[%clk 0:00:29.5]} 40... Kf7 {[%clk 0:00:05]} 41. Kh3 {[%clk 0:00:29.3]}
41... Rc4 {[%clk 0:00:05]} 42. Bd8 {[%clk 0:00:27.4]} 42... Rc3 {[%clk
0:00:04.8]} 43. Bc7 {[%clk 0:00:23.5]} 43... Bb4 {[%clk 0:00:05]} 44. Bf4 {[%clk
0:00:16.8]} 44... Bxa5 {[%clk 0:00:03.4]} 45. Bxh6 {[%clk 0:00:17.1]} 45... Bc7
{[%clk 0:00:03.6]} 46. h5 {[%clk 0:00:13.6]} 46... Rxg3+ {[%clk 0:00:03.9]} 47.
Kh4 {[%clk 0:00:14.3]} 47... Rg1 {[%clk 0:00:04.1]} 48. Bg5 {[%clk 0:00:14.5]}
48... Rh1+ {[%clk 0:00:04.3]} 49. Kg4 {[%clk 0:00:15]} 49... Rg1+ {[%clk
0:00:04.5]} 50. Kh4 {[%clk 0:00:15.6]} 50... a5 {[%clk 0:00:04.8]} 51. h6 {[%clk
0:00:15.7]} 51... Rh1+ {[%clk 0:00:03.6]} 52. Kg4 {[%clk 0:00:15.6]} 52... Rg1+
{[%clk 0:00:04]} 53. Kh5 {[%clk 0:00:16.2]} 53... Rh1+ {[%clk 0:00:04.2]} 54.
Kg4 {[%clk 0:00:15.4]} 54... Be5 {[%clk 0:00:04.8]} 55. Be4 {[%clk 0:00:13.7]}
55... Rg1+ {[%clk 0:00:04.8]} 56. Kf5 {[%clk 0:00:14.3]} 56... Bd4 {[%clk
0:00:05]} 57. Bd5+ {[%clk 0:00:14.1]} 57... Ke8 {[%clk 0:00:04.7]} 58. Bf4
{[%clk 0:00:07.9]} 58... Kd7 {[%clk 0:00:04.5]} 59. h7 {[%clk 0:00:07.6]} 59...
Rf1 {[%clk 0:00:04.3]} 60. Ke4 {[%clk 0:00:07]} 60... Ba1 {[%clk 0:00:04.4]} 61.
Be3 {[%clk 0:00:04.1]} 61... Rh1 {[%clk 0:00:04.4]} 62. Bg8 {[%clk 0:00:03.6]}
62... Rh4+ {[%clk 0:00:04.4]} 63. Kd3 {[%clk 0:00:03.1]} 63... Bh8 {[%clk
0:00:05]} 64. Bg5 {[%clk 0:00:03.1]} 64... Rh3+ {[%clk 0:00:05.2]} 65. Kc4
{[%clk 0:00:03.3]} 65... a4 {[%clk 0:00:06]} 66. Kb4 {[%clk 0:00:03.6]} 66... a3
{[%clk 0:00:06.2]} 67. Bc1 {[%clk 0:00:03.8]} 67... Bb2 {[%clk 0:00:05.5]} 68.
Bd2 {[%clk 0:00:02.2]} 68... Ke7 {[%clk 0:00:05.6]} 69. Bf4 {[%clk 0:00:01.5]}
69... Kf8 {[%clk 0:00:05.7]} 70. Bg5 {[%clk 0:00:01.9]} 70... Kg7 {[%clk
0:00:06.1]} 71. Be6 {[%clk 0:00:02.6]} 71... Rxh7 {[%clk 0:00:05.4]} 72. Bd2
{[%clk 0:00:01.1]} 72... Rh4+ {[%clk 0:00:05.5]} 73. Kb3 {[%clk 0:00:01.2]}
73... Kf6 {[%clk 0:00:06]} 74. Bc4 {[%clk 0:00:01.3]} 74... Rh2 {[%clk
0:00:05.9]} 75. Bb4 {[%clk 0:00:01.3]} 75... Rh3+ {[%clk 0:00:05.9]} 76. Ka2
{[%clk 0:00:01.8]} 76... Rh4 {[%clk 0:00:06]} 77. Kb3 {[%clk 0:00:01.8]} 77...
Rxc4 {[%clk 0:00:06]} 78. Bxa3 {[%clk 0:00:02.4]} 78... Rc3+ {[%clk 0:00:03.3]}
79. Kxb2 {[%clk 0:00:02.9]} 79... Rh3 {[%clk 0:00:03.9]} 80. Bc5 {[%clk
0:00:03.2]} 80... Ke5 {[%clk 0:00:04.4]} 81. Kc2 {[%clk 0:00:03.8]} 81... Kd5
{[%clk 0:00:05]} 82. Ba7 {[%clk 0:00:03.5]} 82... Ke4 {[%clk 0:00:05]} 83. Kd2
{[%clk 0:00:04.1]} 83... Rh2+ {[%clk 0:00:05.2]} 84. Ke1 {[%clk 0:00:04.7]}
84... Kf3 {[%clk 0:00:05.2]} 85. Bb8 {[%clk 0:00:04.5]} 85... Rb2 {[%clk
0:00:03.8]} 86. Ba7 {[%clk 0:00:03.2]} 86... Re2+ {[%clk 0:00:04.2]} 87. Kd1
{[%clk 0:00:02]} 87... Re7 {[%clk 0:00:03.7]} 88. Bb6 {[%clk 0:00:02.1]} 88...
Rb7 {[%clk 0:00:03.7]} 89. Bc5 {[%clk 0:00:02]} 89... Rc7 {[%clk 0:00:04]} 90.
Ba7 {[%clk 0:00:02.6]} 90... Rxa7 {[%clk 0:00:04]} 0-1

[Event "Early-Titled-Tuesday-Blitz-March-19-2024"]
[Site "Chess.com"]
[Date "2024.03.19"]
[Round "8"]
[White "rhungaski"]
[Black "tusplingher"]
[Result "1-0"]
[WhiteElo "2610"]
[BlackElo "2476"]
[TimeControl "180+1"]
[EndTime "9:31:22 PDT"]
[Termination "rhungaski won by resignation"]

1. e4 {[%clk 0:03:00.9]} 1... c5 {[%clk 0:02:59.5]} 2. Nf3 {[%clk 0:03:00.8]}
2... d6 {[%clk 0:02:59.2]} 3. d4 {[%clk 0:03:01.4]} 3... cxd4 {[%clk 0:02:59.1]}
4. Nxd4 {[%clk 0:03:02.3]} 4... Nf6 {[%clk 0:02:59.4]} 5. Nc3 {[%clk 0:03:02.8]}
5... a6 {[%clk 0:02:59.7]} 6. Be2 {[%clk 0:03:02.5]} 6... e5 {[%clk 0:02:52.2]}
7. Nb3 {[%clk 0:03:01.9]} 7... Be7 {[%clk 0:02:50.7]} 8. O-O {[%clk 0:03:01.4]}
8... Nc6 {[%clk 0:02:50.4]} 9. Bf3 {[%clk 0:02:47.9]} 9... O-O {[%clk
0:02:34.6]} 10. Re1 {[%clk 0:02:40]} 10... h6 {[%clk 0:02:23.4]} 11. h3 {[%clk
0:02:36.8]} 11... b5 {[%clk 0:02:14.3]} 12. a4 {[%clk 0:02:36.4]} 12... Rb8
{[%clk 0:02:05.3]} 13. axb5 {[%clk 0:02:35.8]} 13... axb5 {[%clk 0:02:05.4]} 14.
Nd5 {[%clk 0:02:14.6]} 14... Be6 {[%clk 0:01:45.5]} 15. c3 {[%clk 0:02:12.7]}
15... Nd7 {[%clk 0:01:35]} 16. Ra6 {[%clk 0:01:52.2]} 16... Rc8 {[%clk
0:01:27.3]} 17. Qd3 {[%clk 0:01:46.1]} 17... b4 {[%clk 0:01:15.9]} 18. Bg4
{[%clk 0:01:24.1]} 18... bxc3 {[%clk 0:01:10.1]} 19. bxc3 {[%clk 0:01:25]} 19...
Ncb8 {[%clk 0:00:47.5]} 20. Nxe7+ {[%clk 0:00:45]} 20... Qxe7 {[%clk 0:00:47.2]}
21. Rxd6 {[%clk 0:00:45.8]} 21... Bxb3 {[%clk 0:00:34.8]} 22. Bxd7 {[%clk
0:00:42.9]} 22... Rcd8 {[%clk 0:00:34.8]} 23. Ba3 {[%clk 0:00:26.4]} 23... Rxd7
{[%clk 0:00:29.7]} 24. Rxd7 {[%clk 0:00:24.5]} 24... Qxd7 {[%clk 0:00:29.7]} 25.
Qxd7 {[%clk 0:00:23.1]} 25... Nxd7 {[%clk 0:00:30.3]} 26. Bxf8 {[%clk
0:00:23.6]} 26... Kxf8 {[%clk 0:00:30.1]} 27. Rb1 {[%clk 0:00:22]} 27... Nc5
{[%clk 0:00:30.3]} 28. f3 {[%clk 0:00:21]} 28... Ke7 {[%clk 0:00:30.1]} 29. Kf2
{[%clk 0:00:21]} 29... Kd6 {[%clk 0:00:28.8]} 30. Ke3 {[%clk 0:00:20.7]} 30...
Kc6 {[%clk 0:00:27.6]} 31. Ra1 {[%clk 0:00:21]} 31... Ba4 {[%clk 0:00:26.5]} 32.
h4 {[%clk 0:00:20.3]} 32... Kb5 {[%clk 0:00:25.4]} 33. Rb1+ {[%clk 0:00:12.1]}
33... Bb3 {[%clk 0:00:25.6]} 34. Ra1 {[%clk 0:00:12.1]} 34... Na4 {[%clk
0:00:25.8]} 35. Kd2 {[%clk 0:00:10.4]} 35... Kc4 {[%clk 0:00:25.5]} 36. g3
{[%clk 0:00:09.7]} 36... h5 {[%clk 0:00:22.9]} 37. f4 {[%clk 0:00:09.5]} 37...
f6 {[%clk 0:00:22.5]} 38. fxe5 {[%clk 0:00:09.6]} 38... fxe5 {[%clk 0:00:23]}
39. Rf1 {[%clk 0:00:10.4]} 39... Nxc3 {[%clk 0:00:23.2]} 40. Rc1 {[%clk
0:00:10.6]} 40... Kd4 {[%clk 0:00:23]} 41. Rxc3 {[%clk 0:00:11.2]} 41... Be6
{[%clk 0:00:23.4]} 42. Re3 {[%clk 0:00:11.2]} 42... Bg4 {[%clk 0:00:22.9]} 43.
Re1 {[%clk 0:00:09.1]} 43... g6 {[%clk 0:00:23.1]} 44. Re3 {[%clk 0:00:07.3]}
44... Bh3 {[%clk 0:00:23]} 45. Ke2 {[%clk 0:00:04.9]} 45... Bg2 {[%clk
0:00:22.6]} 46. Kf2 {[%clk 0:00:05.6]} 46... Bxe4 {[%clk 0:00:22.9]} 47. Ra3
{[%clk 0:00:05.9]} 47... Bf5 {[%clk 0:00:22.3]} 48. Ra4+ {[%clk 0:00:06.3]}
48... Kd5 {[%clk 0:00:22.4]} 49. Ke3 {[%clk 0:00:06.2]} 49... Ke6 {[%clk
0:00:18.8]} 50. Ra5 {[%clk 0:00:07.1]} 50... Kd6 {[%clk 0:00:18.6]} 51. Ra6+
{[%clk 0:00:07.2]} 51... Ke7 {[%clk 0:00:18.3]} 52. Rb6 {[%clk 0:00:07.3]} 52...
Kd7 {[%clk 0:00:18.6]} 53. Kd2 {[%clk 0:00:07]} 53... Kc7 {[%clk 0:00:18.6]} 54.
Rf6 {[%clk 0:00:07]} 54... Kd7 {[%clk 0:00:18.5]} 55. Kc3 {[%clk 0:00:07.5]}
55... Ke7 {[%clk 0:00:18]} 56. Rb6 {[%clk 0:00:08.2]} 56... Be6 {[%clk
0:00:16.3]} 57. Kd3 {[%clk 0:00:07.1]} 57... Bf5+ {[%clk 0:00:08.7]} 58. Kc4
{[%clk 0:00:07]} 58... Be6+ {[%clk 0:00:08.7]} 59. Kd3 {[%clk 0:00:07.4]} 59...
Bf5+ {[%clk 0:00:09.1]} 60. Ke3 {[%clk 0:00:08.1]} 60... Kf7 {[%clk 0:00:07.3]}
61. Kf3 {[%clk 0:00:07.9]} 61... Ke7 {[%clk 0:00:07.4]} 62. Kf2 {[%clk
0:00:07.3]} 62... Be4 {[%clk 0:00:07.2]} 63. Ra6 {[%clk 0:00:06.4]} 63... Bf5
{[%clk 0:00:07.5]} 64. Ke2 {[%clk 0:00:05.4]} 64... Kd7 {[%clk 0:00:07.5]} 65.
Kd2 {[%clk 0:00:05.5]} 65... Ke7 {[%clk 0:00:08]} 66. Kc3 {[%clk 0:00:06]} 66...
Kd7 {[%clk 0:00:08.4]} 67. Kc4 {[%clk 0:00:06.2]} 67... Be6+ {[%clk 0:00:08.6]}
68. Kc5 {[%clk 0:00:06.7]} 68... Bf5 {[%clk 0:00:06]} 69. Kd5 {[%clk 0:00:05.9]}
69... e4 {[%clk 0:00:05.9]} 70. Kd4 {[%clk 0:00:05.9]} 70... Ke7 {[%clk
0:00:06]} 71. Rb6 {[%clk 0:00:05.9]} 71... Kf7 {[%clk 0:00:06.1]} 72. Ke3 {[%clk
0:00:06.4]} 72... Ke7 {[%clk 0:00:06.4]} 73. Kf4 {[%clk 0:00:07.1]} 73... Kd7
{[%clk 0:00:06.8]} 74. Ra6 {[%clk 0:00:06.8]} 74... Kc7 {[%clk 0:00:06.6]} 75.
Ke3 {[%clk 0:00:04.2]} 75... Kd7 {[%clk 0:00:06.8]} 76. Kd4 {[%clk 0:00:04.1]}
76... Ke7 {[%clk 0:00:07.2]} 77. Rb6 {[%clk 0:00:04.5]} 77... Kd7 {[%clk
0:00:07.4]} 78. Kd5 {[%clk 0:00:04.3]} 78... Ke7 {[%clk 0:00:07.6]} 79. Ke5
{[%clk 0:00:04.1]} 79... Kd7 {[%clk 0:00:06.6]} 80. Rb7+ {[%clk 0:00:04.2]}
80... Kc6 {[%clk 0:00:06.6]} 81. Re7 {[%clk 0:00:04.4]} 81... Kc5 {[%clk
0:00:06.8]} 82. Rc7+ {[%clk 0:00:04.6]} 82... Kb4 {[%clk 0:00:06.8]} 83. Kd4
{[%clk 0:00:04.9]} 83... Kb3 {[%clk 0:00:07.3]} 84. Rc3+ {[%clk 0:00:04.6]}
84... Kb2 {[%clk 0:00:07.5]} 85. Rc7 {[%clk 0:00:04.2]} 85... Kb3 {[%clk
0:00:06.2]} 86. Ke3 {[%clk 0:00:04.1]} 86... Kb2 {[%clk 0:00:05.4]} 87. Rc4
{[%clk 0:00:03.7]} 87... Kb3 {[%clk 0:00:05.7]} 88. Rxe4 {[%clk 0:00:04.3]}
88... Bxe4 {[%clk 0:00:05]} 89. Kxe4 {[%clk 0:00:05.2]} 89... Kc4 {[%clk
0:00:05.6]} 90. Ke5 {[%clk 0:00:05.9]} 90... Kd3 {[%clk 0:00:06.1]} 91. Kf6
{[%clk 0:00:06.7]} 91... Ke3 {[%clk 0:00:06.8]} 92. Kxg6 {[%clk 0:00:07.5]}
92... Kf3 {[%clk 0:00:07.6]} 93. Kxh5 {[%clk 0:00:08.3]} 93... Kxg3 {[%clk
0:00:08.3]} 94. Kg5 {[%clk 0:00:09.2]} 94... Kf3 {[%clk 0:00:08.7]} 95. h5
{[%clk 0:00:10.1]} 1-0